Workbook

Sheet How to Guide
B2: Project and Budget Report
B3: This document is used as part of your application for funding, and if successful, also for reporting. APPLICATION: When applying for funding, we will need to see tab 1 (columns B-G) completed. SUCESSFULL APPLICATIONS: In tab 1, click on "Open Periods" button and populate the budget figure in relevant periods in line with figures in column 'F'. REPORTING: If your application is successful, you will use this document to submit funding claims and provide project updates.
B5: There are 6 sections to complete:
B6: Tab 1. | C6: Budget Vs Actual
C7: Please insert your project budget (columns B-G at application stage). If your applicaiton is successful, you will be required to include your projected cashflow for each period (this will be outlined in the contract). This will allow you to plan when you require your grant instalments from ScreenSkills. When reporting, you will record your actual spend (actual column) next to your forecasted spend (budget column) on each line of your approved budget. You will then be asked to submit the corresponding proof of expenditure for randomly selected expenses. You can define the number of claims you wish to make when creating your cashflow, this can depend on the length of your project and your cashflow needs, please add dates as you see fit. Please do not amend any formulae in this document.
B8: Final reports
C9: Final narrative report for all awards
C10: You are not expected to complete a bespoke final narrative report for us once your training/programme ends, we would however appreciate a copy of any final narrative report you will provide for your majority funder. Preferably this report would draw on feedback from participants, facilitators and industry partners, collected during the project, about their views on the organisation and delivery of the programme. Please speak to your ScreenSkills contact if you require further information.
B11: Notes
C12: VAT
C13: If you are VAT-registered, please note that this funding is out of scope and therefore no VAT can be claimed against any costs which you might incur on this programme. You may wish to seek additional guidance from HMRC.
B14: Need any help?
B15: If you have any questions or run into any problems using the Project and Budget report please contact the Fund Team 020 7713 9800

Sheet EXAMPLE Budget vs Actual (hidden)
C2: Organisation Name: | E2: Trainers R Us
C3: Project Title: | E3: Camera Skills | I3: This is an example budget and cashflow. It shows the level of detail that is required for the breakdown of a project budget.
C4: Project Ref No: | E4: ScreenSkills generated | V4: Click button to fill in the budget per period if your application is successful
C5: Project start date: | E5: 2022-01-04
C6: Project end date: | E6: 2022-12-31
B7: Budget vs Actual | I7: Jan - Mar 22 | K7: Apr - Jun 22 | M7: Jul - Sep 22 | O7: Oct - Dec 22
I8: Period 1 | K8: Period 2 | M8: Period 3 | O8: Period 4
B9: PARTNERSHIP FUNDING (INCOME) BUDGET
B11: Partnership Funding CASH - (Source) Description/Details | C11: Units e.g. days | D11: Number | E11: Unit Income £ | F11: Total (£) | G11: % of project costs | I11: Budget P1 (£) | J11: Actuals P1 (£) | K11: Budget P2 (£) | L11: Actuals P2 (£) | M11: Budget P3 (£) | N11: Actuals P3 (£) | O11: Budget P4 (£) | P11: Actuals P4 (£) | Q11: Total Budget | R11: Total Actual | S11: Variance (£) | T11: Reason for any difference +/- £1,000
B12: Participants' Fees (20 participants x £300) | C12: Participants | D12: 20 | E12: 300 | F12: =E12*D12 -> 6000 | G12: =IF($F$150=0,"",F12/$F$150) -> 0.2382843527 | K12: 2000 | M12: 4000 | Q12: =IF(SUMIF($I$11:$P$11,"*budget*",$I12:$P12)=F12,SUMIF($I$11:$P$11,"*budget*",$I12:$P12),"Error in Period Budget") -> 6000 | R12: =SUMIF($I$11:$P$11,"*actual*",$I12:$P12) -> 0 | S12: =F12-R12 -> 6000
F13: 0 | G13: 0 | Q13: =IF(SUMIF($I$11:$P$11,"*budget*",$I13:$P13)=F13,SUMIF($I$11:$P$11,"*budget*",$I13:$P13),"Error in Period Budget") -> 0 | R13: 0 | S13: 0
F14: 0 | G14: 0 | Q14: 0 | R14: 0 | S14: 0
F15: 0 | G15: 0 | Q15: 0 | R15: 0 | S15: 0
F16: 0 | G16: 0 | Q16: 0 | R16: 0 | S16: 0
F17: 0 | G17: 0 | Q17: 0 | R17: 0 | S17: 0
F18: 0 | G18: 0 | Q18: 0 | R18: 0 | S18: 0
B19: Total (A) | F19: =SUM(F12:F18) -> 6000 | G19: 0.2382843527 | I19: 0 | J19: 0 | K19: 2000 | L19: 0 | M19: 4000 | N19: 0 | O19: 0 | P19: 0 | Q19: =SUM(Q12:Q18) -> 6000 | R19: 0 | S19: 6000
B21: Partnership Funding 'IN-KIND' SUPPORT - (Source) Description/Details | C21: Units e.g. days | D21: Number | E21: Unit Income £ | F21: Total (£) | G21: % of project costs | I21: Budget P1 (£) | J21: Actuals P1 (£) | K21: Budget P2 (£) | L21: Actuals P2 (£) | M21: Budget P3 (£) | N21: Actuals P3 (£) | O21: Budget P4 (£) | P21: Actuals P4 (£) | Q21: Total Budget | R21: Total Actual | S21: Variance (£) | T21: Reason for any difference +/- £1,000
B22: Camera equipment loan by Camera Inc. (20 cameras) | C22: Days | D22: 6 | E22: 1000 | F22: =E22*D22 -> 6000 | G22: =IF($F$150=0,"",F22/$F$150) -> 0.2382843527 | K22: 2000 | M22: 2000 | O22: 2000 | Q22: =IF(SUMIF($I$11:$P$11,"*budget*",$I22:$P22)=F22,SUMIF($I$11:$P$11,"*budget*",$I22:$P22),"Error in Period Budget") -> 6000 | R22: =SUMIF($I$11:$P$11,"*actual*",$I22:$P22) -> 0 | S22: =F22-R22 -> 6000
B23: Room Hire (Conference Centre Edinburgh) | C23: Days | D23: 6 | E23: 175 | F23: 1050 | G23: 0.04169976172 | K23: 350 | M23: 350 | O23: 350 | Q23: 1050 | R23: 0 | S23: 1050
B24: Website updating by our web developers (Web Inc.) | D24: 1 | E24: 350 | F24: 350 | G24: 0.01389992057 | I24: 350 | Q24: 350 | R24: 0 | S24: 350
F25: 0 | G25: 0 | Q25: 0 | R25: 0 | S25: 0
F26: =E26*D26 -> 0 | G26: 0 | Q26: 0 | R26: 0 | S26: 0
F27: 0 | G27: 0 | Q27: 0 | R27: 0 | S27: 0
F28: 0 | G28: 0 | Q28: 0 | R28: 0 | S28: 0
B29: Total (B) | F29: =SUM(F22:F28) -> 7400 | G29: 0.2938840349 | I29: 350 | J29: 0 | K29: 2350 | L29: 0 | M29: 2350 | N29: 0 | O29: 2350 | P29: 0 | Q29: =SUM(Q22:Q28) -> 7400 | R29: 0 | S29: 7400
B31: Partnership Funding Subtotal (Cash & In-kind) (A+B) | F31: =F19+F29 -> 13400 | G31: =G29+G19 -> 0.5321683876 | I31: =I19+I29 -> 350 | J31: 0 | K31: 4350 | L31: 0 | M31: 6350 | N31: 0 | O31: 2350 | P31: 0 | Q31: 13400 | R31: 0 | S31: 13400
B34: ScreenSkills Funding | F34: Total (£) | G34: % of project costs | I34: Budget P1 (£) | J34: Actuals P1 (£) | K34: Budget P2 (£) | L34: Actuals P2 (£) | M34: Budget P3 (£) | N34: Actuals P3 (£) | O34: Budget P4 (£) | P34: Actuals P4 (£) | Q34: Total Budget | R34: Total Actual | S34: Variance (£) | T34: Reason for any difference +/- £1,000
B35: ScreenSkills Funding | E35: 11780 | F35: =E35 -> 11780 | G35: =IF($F$150=0,"",F35/$F$150) -> 0.4678316124 | I35: 2962.5 | K35: 3847.5 | M35: 397.5 | O35: 4572.5 | Q35: =SUMIF($I$11:$P$11,"*budget*",$I35:$P35) -> 11780 | R35: =SUMIF($I$11:$P$11,"*actual*",$I35:$P35) -> 0 | S35: =F35-R35 -> 11780
B36: Total ScreenSkills Funding (C) | F36: =SUM(F35:F35) -> 11780 | G36: 0.4678316124 | I36: 2962.5 | J36: 0 | K36: 3847.5 | L36: 0 | M36: 397.5 | N36: 0 | O36: 4572.5 | P36: 0 | Q36: 11780 | R36: 0 | S36: 11780
B39: Project Income TOTAL (Partnership Funding Total + ScreenSkills Total) (A+B+C) | F39: =F31+F36 -> 25180 | G39: 1 | I39: 3312.5 | J39: 0 | K39: 8197.5 | L39: 0 | M39: 6747.5 | N39: 0 | O39: 6922.5 | P39: 0 | Q39: 25180 | R39: 0 | S39: 25180
B43: PROJECT EXPENDITURE BUDGET
B45: Training (speakers, venue hire, travel for those delivering training etc) | C45: Units e.g. days | D45: Number | E45: Unit Cost £ | F45: Total (£) | G45: % of project costs | I45: Budget P1 (£) | J45: Actuals P1 (£) | K45: Budget P2 (£) | L45: Actuals P2 (£) | M45: Budget P3 (£) | N45: Actuals P3 (£) | O45: Budget P4 (£) | P45: Actuals P4 (£) | Q45: Total Budget | R45: Total Actual | S45: Variance (£) | T45: Reason for any difference +/- £1,000
B46: Trainer fee - Adam Smith | C46: Days | D46: 6 | E46: 700 | F46: =E46*D46 -> 4200 | G46: =IF($F$150=0,"",F46/$F$150) -> 0.1667990469 | K46: 1400 | M46: 1400 | O46: 1400 | Q46: =IF(SUMIF($I$11:$P$11,"*budget*",$I46:$P46)=F46,SUMIF($I$11:$P$11,"*budget*",$I46:$P46),"Error in Period Budget") -> 4200 | R46: =SUMIF($I$11:$P$11,"*actual*",$I46:$P46) -> 0 | S46: =F46-R46 -> 4200
B47: Course manual for 20 participants | D47: 20 | E47: 10 | F47: 200 | G47: 0.007942811755 | I47: 200 | Q47: 200 | R47: 0 | S47: 200
B48: Course tutor's travel costs to Edinburgh from Glasgow for 6 days training | C48: Days | D48: 6 | E48: 50 | F48: 300 | G48: 0.01191421763 | K48: 125 | M48: 125 | O48: 50 | Q48: 300 | R48: 0 | S48: 300
B49: Technical assistant for 6 days training | C49: Days | D49: 6 | E49: 200 | F49: 1200 | G49: 0.04765687053 | K49: 400 | M49: 400 | O49: 400 | Q49: 1200 | R49: 0 | S49: 1200
B50: Subsistence for participants | C50: 6 days for 21 ppl | D50: 6 | E50: 105 | F50: 630 | G50: 0.02501985703 | K50: 210 | M50: 210 | O50: 210 | Q50: 630 | R50: 0 | S50: 630
B51: Room Hire (Conference Centre Edinburgh) (In Kind) | C51: Days | D51: 6 | E51: 175 | F51: 1050 | G51: 0.04169976172 | K51: 350 | M51: 350 | O51: 350 | Q51: 1050 | R51: 0 | S51: 1050
F52: 0 | G52: 0 | Q52: 0 | R52: 0 | S52: 0
F53: 0 | G53: 0 | Q53: 0 | R53: 0 | S53: 0
F54: 0 | G54: 0 | Q54: 0 | R54: 0 | S54: 0
F55: 0 | G55: 0 | Q55: 0 | R55: 0 | S55: 0
F56: 0 | G56: 0 | Q56: 0 | R56: 0 | S56: 0
B57: Total | F57: =SUM(F46:F56) -> 7580 | G57: 0.3010325655 | I57: 200 | J57: 0 | K57: 2485 | L57: 0 | M57: 2485 | N57: 0 | O57: 2410 | P57: 0 | Q57: 7580 | R57: 0 | S57: 7580
B59: Project Management (e.g. Intenal managers, administrators) | C59: Units e.g. days | D59: Number | E59: Unit Cost £ | F59: Total (£) | G59: % of project costs | I59: Budget P1 (£) | J59: Actuals P1 (£) | K59: Budget P2 (£) | L59: Actuals P2 (£) | M59: Budget P3 (£) | N59: Actuals P3 (£) | O59: Budget P4 (£) | P59: Actuals P4 (£) | Q59: Total Budget | R59: Total Actual | S59: Variance (£) | T59: Reason for any difference +/- £1,000
B60: Project Manager 2 days per week for 4 mths | C60: Days | D60: 20 | E60: 250 | F60: =E60*D60 -> 5000 | G60: =IF($F$150=0,"",F60/$F$150) -> 0.1985702939 | I60: 1250 | K60: 1250 | M60: 1250 | O60: 1250 | Q60: =IF(SUMIF($I$11:$P$11,"*budget*",$I60:$P60)=F60,SUMIF($I$11:$P$11,"*budget*",$I60:$P60),"Error in Period Budget") -> 5000 | R60: =SUMIF($I$11:$P$11,"*actual*",$I60:$P60) -> 0 | S60: =F60-R60 -> 5000
B61: Project Coordinator 1 day per month for 4 mths | C61: Days | D61: 11 | E61: 150 | F61: 1650 | G61: 0.06552819698 | I61: 412.5 | K61: 412.5 | M61: 412.5 | O61: 412.5 | Q61: 1650 | R61: 0 | S61: 1650
B62: Travel to Edinburgh (return) | C62: Director + Coordinator | D62: 2 | E62: 225 | F62: 450 | G62: 0.01787132645 | K62: 450 | Q62: 450 | R62: 0 | S62: 450
F63: 0 | G63: 0 | Q63: 0 | R63: 0 | S63: 0
F64: 0 | G64: 0 | Q64: 0 | R64: 0 | S64: 0
F65: 0 | G65: 0 | Q65: 0 | R65: 0 | S65: 0
F66: 0 | G66: 0 | Q66: 0 | R66: 0 | S66: 0
F67: 0 | G67: 0 | Q67: 0 | R67: 0 | S67: 0
F68: 0 | G68: 0 | Q68: 0 | R68: 0 | S68: 0
F69: 0 | G69: 0 | Q69: 0 | R69: 0 | S69: 0
B70: Total | F70: =SUM(F60:F69) -> 7100 | G70: 0.2819698173 | I70: 1662.5 | J70: 0 | K70: 2112.5 | L70: 0 | M70: 1662.5 | N70: 0 | O70: 1662.5 | P70: 0 | Q70: =SUM(Q60:Q69) -> 7100 | R70: 0 | S70: 7100
B72: Overheads (rent, light, heating etc) | C72: Units e.g. days | D72: Number | E72: Unit Cost £ | F72: Total (£) | G72: % of project costs | I72: Budget P1 (£) | J72: Actuals P1 (£) | K72: Budget P2 (£) | L72: Actuals P2 (£) | M72: Budget P3 (£) | N72: Actuals P3 (£) | O72: Budget P4 (£) | P72: Actuals P4 (£) | Q72: Total Budget | R72: Total Actual | S72: Variance (£) | T72: Reason for any difference +/- £1,000
B73: 10% of office rent | D73: 12 | E73: 100 | F73: =E73*D73 -> 1200 | G73: =IF($F$150=0,"",F73/$F$150) -> 0.04765687053 | I73: 300 | K73: 300 | M73: 300 | O73: 300 | Q73: =IF(SUMIF($I$11:$P$11,"*budget*",$I73:$P73)=F73,SUMIF($I$11:$P$11,"*budget*",$I73:$P73),"Error in Period Budget") -> 1200 | R73: =SUMIF($I$11:$P$11,"*actual*",$I73:$P73) -> 0 | S73: =F73-R73 -> 1200
B74: Lighting | D74: 12 | E74: 50 | F74: 600 | G74: 0.02382843527 | I74: 150 | K74: 150 | M74: 150 | O74: 150 | Q74: 600 | R74: 0 | S74: 600
B75: Heating | D75: 12 | E75: 50 | F75: 600 | G75: 0.02382843527 | I75: 150 | K75: 150 | M75: 150 | O75: 150 | Q75: 600 | R75: 0 | S75: 600
F76: 0 | G76: 0 | Q76: 0 | R76: 0 | S76: 0
F77: 0 | G77: 0 | Q77: 0 | R77: 0 | S77: 0
F78: 0 | G78: 0 | Q78: 0 | R78: 0 | S78: 0
F79: 0 | G79: 0 | Q79: 0 | R79: 0 | S79: 0
F80: 0 | G80: 0 | Q80: 0 | R80: 0 | S80: 0
F81: 0 | G81: 0 | Q81: 0 | R81: 0 | S81: 0
F82: 0 | G82: 0 | Q82: 0 | R82: 0 | S82: 0
B83: Total | F83: =SUM(F73:F82) -> 2400 | G83: 0.09531374106 | I83: 600 | J83: 0 | K83: 600 | L83: 0 | M83: 600 | N83: 0 | O83: 600 | P83: 0 | Q83: =SUM(Q73:Q82) -> 2400 | R83: 0 | S83: 2400
B85: Marketing/Recruitment | C85: Units e.g. days | D85: Number | E85: Unit Cost £ | F85: Total (£) | G85: % of project costs | I85: Budget P1 (£) | J85: Actuals P1 (£) | K85: Budget P2 (£) | L85: Actuals P2 (£) | M85: Budget P3 (£) | N85: Actuals P3 (£) | O85: Budget P4 (£) | P85: Actuals P4 (£) | Q85: Total Budget | R85: Total Actual | S85: Variance (£) | T85: Reason for any difference +/- £1,000
B86: Art work design | D86: 1 | E86: 500 | F86: =E86*D86 -> 500 | G86: =IF($F$150=0,"",F86/$F$150) -> 0.01985702939 | I86: 500 | Q86: =IF(SUMIF($I$11:$P$11,"*budget*",$I86:$P86)=F86,SUMIF($I$11:$P$11,"*budget*",$I86:$P86),"Error in Period Budget") -> 500 | R86: =SUMIF($I$11:$P$11,"*actual*",$I86:$P86) -> 0 | S86: =F86-R86 -> 500
B87: Website (in kind) | D87: 1 | E87: 350 | F87: 350 | G87: 0.01389992057 | I87: 350 | Q87: 350 | R87: 0 | S87: 350
F88: 0 | G88: 0 | Q88: 0 | R88: 0 | S88: 0
F89: 0 | G89: 0 | Q89: 0 | R89: 0 | S89: 0
F90: 0 | G90: 0 | Q90: 0 | R90: 0 | S90: 0
F91: 0 | G91: 0 | Q91: 0 | R91: 0 | S91: 0
F92: 0 | G92: 0 | Q92: 0 | R92: 0 | S92: 0
F93: 0 | G93: 0 | Q93: 0 | R93: 0 | S93: 0
F94: 0 | G94: 0 | Q94: 0 | R94: 0 | S94: 0
F95: 0 | G95: 0 | Q95: 0 | R95: 0 | S95: 0
B96: Total | F96: =SUM(F86:F95) -> 850 | G96: 0.03375694996 | I96: 850 | J96: 0 | K96: 0 | L96: 0 | M96: 0 | N96: 0 | O96: 0 | P96: 0 | Q96: =SUM(Q86:Q95) -> 850 | R96: 0 | S96: 850
B98: Access Support (Childcare cost, Disability Support, Hardship) | C98: Units e.g. days | D98: Number | E98: Unit Cost £ | F98: Total (£) | G98: % of project costs | I98: Budget P1 (£) | J98: Actuals P1 (£) | K98: Budget P2 (£) | L98: Actuals P2 (£) | M98: Budget P3 (£) | N98: Actuals P3 (£) | O98: Budget P4 (£) | P98: Actuals P4 (£) | Q98: Total Budget | R98: Total Actual | S98: Variance (£) | T98: Reason for any difference +/- £1,000
B99: Travel costs for participants with access needs | C99: Participants | D99: 5 | E99: 200 | F99: =E99*D99 -> 1000 | G99: =IF($F$150=0,"",F99/$F$150) -> 0.03971405878 | K99: 1000 | Q99: =IF(SUMIF($I$11:$P$11,"*budget*",$I99:$P99)=F99,SUMIF($I$11:$P$11,"*budget*",$I99:$P99),"Error in Period Budget") -> 1000 | R99: =SUMIF($I$11:$P$11,"*actual*",$I99:$P99) -> 0 | S99: =F99-R99 -> 1000
F100: 0 | G100: 0 | Q100: 0 | R100: 0 | S100: 0
F101: 0 | G101: 0 | Q101: 0 | R101: 0 | S101: 0
F102: 0 | G102: 0 | Q102: 0 | R102: 0 | S102: 0
F103: 0 | G103: 0 | Q103: 0 | R103: 0 | S103: 0
F104: 0 | G104: 0 | Q104: 0 | R104: 0 | S104: 0
F105: 0 | G105: 0 | Q105: 0 | R105: 0 | S105: 0
F106: 0 | G106: 0 | Q106: 0 | R106: 0 | S106: 0
F107: 0 | G107: 0 | Q107: 0 | R107: 0 | S107: 0
F108: 0 | G108: 0 | Q108: 0 | R108: 0 | S108: 0
B109: Total | F109: =SUM(F99:F108) -> 1000 | G109: 0.03971405878 | I109: 0 | J109: 0 | K109: 1000 | L109: 0 | M109: 0 | N109: 0 | O109: 0 | P109: 0 | Q109: =SUM(Q99:Q108) -> 1000 | R109: 0 | S109: 1000
B111: Equipment | C111: Units e.g. days | D111: Number | E111: Unit Cost £ | F111: Total (£) | G111: % of project costs | I111: Budget P1 (£) | J111: Actuals P1 (£) | K111: Budget P2 (£) | L111: Actuals P2 (£) | M111: Budget P3 (£) | N111: Actuals P3 (£) | O111: Budget P4 (£) | P111: Actuals P4 (£) | Q111: Total Budget | R111: Total Actual | S111: Variance (£) | T111: Reason for any difference +/- £1,000
B112: Camera equipment loan by Camera Inc. (20 cameras) (in kind) | C112: Days | D112: 6 | E112: 1000 | F112: =E112*D112 -> 6000 | G112: =IF($F$150=0,"",F112/$F$150) -> 0.2382843527 | K112: 2000 | M112: 2000 | O112: 2000 | Q112: =IF(SUMIF($I$11:$P$11,"*budget*",$I112:$P112)=F112,SUMIF($I$11:$P$11,"*budget*",$I112:$P112),"Error in Period Budget") -> 6000 | R112: =SUMIF($I$11:$P$11,"*actual*",$I112:$P112) -> 0 | S112: =F112-R112 -> 6000
F113: 0 | G113: 0 | Q113: 0 | R113: 0 | S113: 0
F114: 0 | G114: 0 | Q114: 0 | R114: 0 | S114: 0
F115: 0 | G115: 0 | Q115: 0 | R115: 0 | S115: 0
F116: 0 | G116: 0 | Q116: 0 | R116: 0 | S116: 0
F117: 0 | G117: 0 | Q117: 0 | R117: 0 | S117: 0
F118: 0 | G118: 0 | Q118: 0 | R118: 0 | S118: 0
F119: 0 | G119: 0 | Q119: 0 | R119: 0 | S119: 0
F120: 0 | G120: 0 | Q120: 0 | R120: 0 | S120: 0
F121: 0 | G121: 0 | Q121: 0 | R121: 0 | S121: 0
B122: Total | F122: =SUM(F112:F121) -> 6000 | G122: 0.2382843527 | I122: 0 | J122: 0 | K122: 2000 | L122: 0 | M122: 2000 | N122: 0 | O122: 2000 | P122: 0 | Q122: =SUM(Q112:Q121) -> 6000 | R122: 0 | S122: 6000
B124: Other (please provide breakdown of any costs that do not fit into other areas of ths budget) | C124: Units e.g. days | D124: Number | E124: Unit Cost £ | F124: Total (£) | G124: % of project costs | I124: Budget P1 (£) | J124: Actuals P1 (£) | K124: Budget P2 (£) | L124: Actuals P2 (£) | M124: Budget P3 (£) | N124: Actuals P3 (£) | O124: Budget P4 (£) | P124: Actuals P4 (£) | Q124: Total Budget | R124: Total Actual | S124: Variance (£) | T124: Reason for any difference +/- £1,000
F125: =E125*D125 -> 0 | G125: =IF($F$150=0,"",F125/$F$150) -> 0 | Q125: =IF(SUMIF($I$11:$P$11,"*budget*",$I125:$P125)=F125,SUMIF($I$11:$P$11,"*budget*",$I125:$P125),"Error in Period Budget") -> 0 | R125: =SUMIF($I$11:$P$11,"*actual*",$I125:$P125) -> 0 | S125: =F125-R125 -> 0
F126: 0 | G126: 0 | Q126: 0 | R126: 0 | S126: 0
F127: 0 | G127: 0 | Q127: 0 | R127: 0 | S127: 0
F128: 0 | G128: 0 | Q128: 0 | R128: 0 | S128: 0
F129: 0 | G129: 0 | Q129: 0 | R129: 0 | S129: 0
F130: 0 | G130: 0 | Q130: 0 | R130: 0 | S130: 0
F131: 0 | G131: 0 | Q131: 0 | R131: 0 | S131: 0
F132: 0 | G132: 0 | Q132: 0 | R132: 0 | S132: 0
F133: 0 | G133: 0 | Q133: 0 | R133: 0 | S133: 0
F134: 0 | G134: 0 | Q134: 0 | R134: 0 | S134: 0
B135: Total | F135: =SUM(F125:F134) -> 0 | G135: 0 | I135: 0 | J135: 0 | K135: 0 | L135: 0 | M135: 0 | N135: 0 | O135: 0 | P135: 0 | Q135: =SUM(Q125:Q134) -> 0 | R135: 0 | S135: 0
B137: Evaluation (for projects where ScreenSkills fuding amounts to £50,000 + only will require and independent audit. Remember to budget for this) | C137: Units e.g. days | D137: Number | E137: Unit Cost £ | F137: Total (£) | G137: % of project costs | I137: Budget P1 (£) | J137: Actuals P1 (£) | K137: Budget P2 (£) | L137: Actuals P2 (£) | M137: Budget P3 (£) | N137: Actuals P3 (£) | O137: Budget P4 (£) | P137: Actuals P4 (£) | Q137: Total Budget | R137: Total Actual | S137: Variance (£) | T137: Reason for any difference +/- £1,000
B138: Project Evaluation by Project Manager to work on narrative report | C138: Days | D138: 1 | E138: 250 | F138: =E138*D138 -> 250 | G138: =IF($F$150=0,"",F138/$F$150) -> 0.009928514694 | O138: 250 | Q138: =IF(SUMIF($I$11:$P$11,"*budget*",$I138:$P138)=F138,SUMIF($I$11:$P$11,"*budget*",$I138:$P138),"Error in Period Budget") -> 250 | R138: =SUMIF($I$11:$P$11,"*actual*",$I138:$P138) -> 0 | S138: =F138-R138 -> 250
F139: 0 | G139: 0 | Q139: =IF(SUMIF($I$11:$P$11,"*budget*",$I139:$P139)=F139,SUMIF($I$11:$P$11,"*budget*",$I139:$P139),"Error in Period Budget") -> 0 | R139: 0 | S139: 0
F140: 0 | G140: 0 | Q140: 0 | R140: 0 | S140: 0
F141: 0 | G141: 0 | Q141: 0 | R141: 0 | S141: 0
F142: 0 | G142: 0 | Q142: 0 | R142: 0 | S142: 0
F143: 0 | G143: 0 | Q143: 0 | R143: 0 | S143: 0
F144: 0 | G144: 0 | Q144: 0 | R144: 0 | S144: 0
F145: 0 | G145: 0 | Q145: 0 | R145: 0 | S145: 0
F146: 0 | G146: 0 | Q146: 0 | R146: 0 | S146: 0
F147: 0 | G147: 0 | Q147: 0 | R147: 0 | S147: 0
B148: Total | F148: =SUM(F138:F147) -> 250 | G148: 0.009928514694 | I148: 0 | J148: 0 | K148: 0 | L148: 0 | M148: 0 | N148: 0 | O148: 250 | P148: 0 | Q148: =SUM(Q138:Q147) -> 250 | R148: 0 | S148: 250
B150: TOTAL PROJECT EXPENDITURE - ( C ) | F150: =F57+F70+F83+F96+F109+F135+F122+F148 -> 25180 | G150: =G57+G70+G83+G96+G109+G135+G122+G148 -> 1 | I150: =I148+I135+I122+I109+I96+I83+I57+I70 -> 3312.5 | J150: 0 | K150: 8197.5 | L150: 0 | M150: 6747.5 | N150: 0 | O150: 6922.5 | P150: 0 | Q150: 25180 | R150: 0 | S150: 25180
C152: ScreenSkills USE ONLY | I152: ScreenSkills USE ONLY
C154: Project Summary | I154: =I137 -> Budget P1 (£) | J154: Actuals P1 (£) | K154: Budget P2 (£) | L154: Actuals P2 (£) | M154: Budget P3 (£) | N154: Actuals P3 (£) | O154: Budget P4 (£) | P154: Actuals P4 (£) | Q154: Total Budget | R154: Total Actual | S154: Variance
C155: Total Project Income | F155: =F39 -> 25180 | I155: =I39 -> 3312.5 | J155: 0 | K155: 8197.5 | L155: 0 | M155: 6747.5 | N155: 0 | O155: 6922.5 | P155: 0 | Q155: =SUMIF($I$11:$P$11,"*budget*",$I155:$P155) -> 25180 | R155: =SUMIF($I$11:$P$11,"*actual*",$I155:$P155) -> 0 | S155: =F155-R155 -> 25180
C156: Total Project Expenditure | F156: =F150 -> 25180 | I156: =I150 -> 3312.5 | J156: 0 | K156: 8197.5 | L156: 0 | M156: 6747.5 | N156: 0 | O156: 6922.5 | P156: 0 | Q156: =SUMIF($I$11:$P$11,"*budget*",$I156:$P156) -> 25180 | R156: =SUMIF($I$11:$P$11,"*actual*",$I156:$P156) -> 0 | S156: =F156-R156 -> 25180
C157: Total Project Cost (expenditure minus income) | F157: =F156-F155 -> 0 | I157: =I155-I156 -> 0 | J157: 0 | K157: 0 | L157: 0 | M157: 0 | N157: 0 | O157: 0 | P157: 0 | Q157: 0 | R157: 0 | S157: 0
B159: Narrative on Overheads & Project Management Costs
B160: Please use this section to tell us how you have calculated your overheads and project management costs:
B175: Notes to the Budget

Sheet 1. Budget
C2: Organisation Name: | E2: Please add
C3: Project Title: | E3: Please add
C4: Project Ref No: | E4: ScreenSkills generated
C5: Project start date: | E5: Please add
C6: Project end date: | E6: Please add
B7: Budget | I7: Date to be added e.g. Jan - Mar 22 | K7: Date to be added | M7: Date to be added | O7: Date to be added
I8: Period 1 | K8: Period 2 | M8: Period 3 | O8: Period 4
B9: Project Budget
B11: Total Project Budget Please provide the total cost of this project. | E11: Amount | F11: Total (£) | G11: % of project costs | I11: Budget P1 (£) | J11: Actuals P1 (£) | K11: Budget P2 (£) | L11: Actuals P2 (£) | M11: Budget P3 (£) | N11: Actuals P3 (£) | O11: Budget P4 (£) | P11: Actuals P4 (£) | Q11: Total Budget | R11: Total Actual | S11: Variance (£) | T11: Reason for any difference +/- £1,000
B12: Total Project Budget | F12: =E12 -> 0 | G12: 1 | Q12: =IF(SUMIF($I$11:$P$11,"*budget*",$I12:$P12)=F12,SUMIF($I$11:$P$11,"*budget*",$I12:$P12),"Error in Period Budget") -> 0 | R12: =SUMIF($I$11:$P$11,"*actual*",$I12:$P12) -> 0 | S12: =F12-R12 -> 0
B13: Total | F13: =SUM(F12:F12) -> 0 | G13: =SUM(G12:G12) -> 1 | I13: =SUM(I12:I12) -> 0 | J13: 0 | K13: 0 | L13: 0 | M13: 0 | N13: 0 | O13: 0 | P13: 0 | Q13: 0 | R13: 0 | S13: 0
B15: Contributing Funders (Income) Please list all of the income streams for this project other than ScreenSkills. | E15: Amount | F15: Total (£) | G15: % of project costs | I15: Budget P1 (£) | J15: Actuals P1 (£) | K15: Budget P2 (£) | L15: Actuals P2 (£) | M15: Budget P3 (£) | N15: Actuals P3 (£) | O15: Budget P4 (£) | P15: Actuals P4 (£) | Q15: Total Budget | R15: Total Actual | S15: Variance (£) | T15: Reason for any difference +/- £1,000
F16: =E16 -> 0 | G16: =F16/F12 ->  | Q16: =IF(SUMIF($I$11:$P$11,"*budget*",$I16:$P16)=F16,SUMIF($I$11:$P$11,"*budget*",$I16:$P16),"Error in Period Budget") -> 0 | R16: =SUMIF($I$11:$P$11,"*actual*",$I16:$P16) -> 0 | S16: =F16-R16 -> 0
F17: =E17 -> 0 | G17: =F17/F13 ->  | Q17: 0 | R17: 0 | S17: 0
F18: 0 | G18: =F18/F13 ->  | Q18: 0 | R18: 0 | S18: 0
F19: 0 | G19: =F19/F13 ->  | Q19: 0 | R19: 0 | S19: 0
F20: 0 | G20: =F20/F13 ->  | Q20: 0 | R20: 0 | S20: 0
B21: Total | F21: =SUM(F16:F20) -> 0 | G21: =SUM(G16:G20) ->  | I21: =SUM(I16:I20) -> 0 | J21: 0 | K21: 0 | L21: 0 | M21: 0 | N21: 0 | O21: 0 | P21: 0 | Q21: 0 | R21: 0 | S21: 0
B23: IN-KIND EXPENDITURE
B25: Partnership Expenditure 'IN-KIND' SUPPORT - (Source) Description/Details | C25: Units e.g. days | D25: Number | E25: Unit Income £ | F25: Total (£) | G25: % of project costs | I25: Budget P1 (£) | J25: Actuals P1 (£) | K25: Budget P2 (£) | L25: Actuals P2 (£) | M25: Budget P3 (£) | N25: Actuals P3 (£) | O25: Budget P4 (£) | P25: Actuals P4 (£) | Q25: Total Budget | R25: Total Actual | S25: Variance (£) | T25: Reason for any difference +/- £1,000
F26: =E26*D26 -> 0 | G26: =IF($F$172=0,"",F26/$F$172) ->  | Q26: =IF(SUMIF($I$11:$P$11,"*budget*",$I26:$P26)=F26,SUMIF($I$11:$P$11,"*budget*",$I26:$P26),"Error in Period Budget") -> 0 | R26: =SUMIF($I$11:$P$11,"*actual*",$I26:$P26) -> 0 | S26: =F26-R26 -> 0
F27: 0 | G27: =IF($F$172=0,"",F27/$F$172) ->  | Q27: 0 | R27: 0 | S27: 0
Q28: 0 | R28: 0 | S28: 0
Q29: 0 | R29: 0 | S29: 0
Q30: =IF(SUMIF($I$11:$P$11,"*budget*",$I30:$P30)=F30,SUMIF($I$11:$P$11,"*budget*",$I30:$P30),"Error in Period Budget") -> 0 | R30: 0 | S30: =F30-R30 -> 0
Q31: =IF(SUMIF($I$11:$P$11,"*budget*",$I31:$P31)=F31,SUMIF($I$11:$P$11,"*budget*",$I31:$P31),"Error in Period Budget") -> 0 | R31: 0 | S31: =F31-R31 -> 0
B33: Partnership Funding Subtotal (Expenditure) (C) | F33: =SUM(F26:F32) -> 0 | G33: 0 | I33: =SUM(I26:I32) -> 0 | J33: 0 | K33: 0 | L33: 0 | M33: 0 | N33: 0 | O33: 0 | P33: 0 | Q33: =SUM(Q26:Q32) -> 0 | R33: 0 | S33: 0
B35: Project in-kind Income & Expenditure (A+B+C) | F35: =#REF!-F33 ->  | G35: =#REF!-G33 ->  | I35: =#REF!-I33 ->  | J35: =#REF!-J33 ->  | K35: =#REF!-K33 ->  | L35: =#REF!-L33 ->  | M35: =#REF!-M33 ->  | N35: =#REF!-N33 ->  | O35: =#REF!-O33 ->  | P35: =#REF!-P33 ->  | Q35: =#REF!-Q33 ->  | R35: =#REF!-R33 ->  | S35: =#REF!-S33 -> 
B39: SCREENSKILLS FUNDING
B41: ScreenSkills Funding (Income) | E41: Amount | F41: Total (£) | G41: % of project costs | I41: Budget P1 (£) | J41: Actuals P1 (£) | K41: Budget P2 (£) | L41: Actuals P2 (£) | M41: Budget P3 (£) | N41: Actuals P3 (£) | O41: Budget P4 (£) | P41: Actuals P4 (£) | Q41: Total Budget | R41: Total Actual | S41: Variance (£) | T41: Reason for any difference +/- £1,000
B42: SceenSkills Funding | F42: =E42 -> 0 | G42: =F42/F12 ->  | Q42: =SUMIF($I$11:$P$11,"*budget*",$I42:$P42) -> 0 | R42: =SUMIF($I$11:$P$11,"*actual*",$I42:$P42) -> 0 | S42: =F42-R42 -> 0
B43: Total | F43: =F42 -> 0 | G43: =SUM(G42:G42) ->  | I43: =SUM(I42:I42) -> 0 | J43: 0 | K43: 0 | L43: 0 | M43: 0 | N43: 0 | O43: 0 | P43: 0 | Q43: 0 | R43: 0 | S43: 0
B45: SCREENSKILLS GRANT EXPENDITURE
B47: Description (Training, Project Management, Overheads, etc) | C47: Units e.g. days | D47: Number | E47: Unit Cost £ | F47: Total (£) | G47: % of ScreenSkills Grant | I47: Budget P1 (£) | J47: Actuals P1 (£) | K47: Budget P2 (£) | L47: Actuals P2 (£) | M47: Budget P3 (£) | N47: Actuals P3 (£) | O47: Budget P4 (£) | P47: Actuals P4 (£) | Q47: Total Budget | R47: Total Actual | S47: Variance (£) | T47: Reason for any difference +/- £1,000
F48: =E48*D48 -> 0 | G48: =F48/F43 ->  | Q48: =IF(SUMIF($I$11:$P$11,"*budget*",$I48:$P48)=F48,SUMIF($I$11:$P$11,"*budget*",$I48:$P48),"Error in Period Budget") -> 0 | R48: =SUMIF($I$11:$P$11,"*actual*",$I48:$P48) -> 0 | S48: =F48-R48 -> 0
F49: =E49*D49 -> 0 | G49: =F49/F43 ->  | Q49: =IF(SUMIF($I$11:$P$11,"*budget*",$I49:$P49)=F49,SUMIF($I$11:$P$11,"*budget*",$I49:$P49),"Error in Period Budget") -> 0 | R49: 0 | S49: =F49-R49 -> 0
F50: =E50*D50 -> 0 | G50: =F50/F43 ->  | Q50: 0 | R50: 0 | S50: 0
F51: 0 | G51: =F51/F43 ->  | Q51: 0 | R51: 0 | S51: 0
F52: =E52*D52 -> 0 | G52: =F52/F43 ->  | Q52: 0 | R52: 0 | S52: 0
F53: 0 | G53: =F53/F43 ->  | Q53: 0 | R53: 0 | S53: 0
F54: 0 | G54: =F54/F43 ->  | Q54: 0 | R54: 0 | S54: 0
F55: 0 | G55: =F55/F43 ->  | Q55: 0 | R55: 0 | S55: 0
F56: 0 | G56: =F56/F43 ->  | Q56: 0 | R56: 0 | S56: 0
F57: 0 | G57: =F57/F43 ->  | Q57: 0 | R57: 0 | S57: 0
F58: =E58*D58 -> 0 | G58: =F58/F43 ->  | Q58: 0 | R58: 0 | S58: 0
F59: 0 | G59: =F59/F43 ->  | Q59: =IF(SUMIF($I$11:$P$11,"*budget*",$I59:$P59)=F59,SUMIF($I$11:$P$11,"*budget*",$I59:$P59),"Error in Period Budget") -> 0 | R59: 0 | S59: =F59-R59 -> 0
F60: 0 | G60: =F60/F43 ->  | Q60: 0 | R60: 0 | S60: 0
F61: 0 | G61: =F61/F43 ->  | Q61: 0 | R61: 0 | S61: 0
F62: =E62*D62 -> 0 | G62: =F62/F43 ->  | Q62: 0 | R62: 0 | S62: 0
F63: 0 | G63: =F63/F43 ->  | Q63: 0 | R63: 0 | S63: 0
F64: 0 | G64: =F64/F43 ->  | Q64: 0 | R64: 0 | S64: 0
F65: 0 | G65: =F65/F43 ->  | Q65: 0 | R65: 0 | S65: 0
F66: 0 | G66: =F66/F43 ->  | Q66: 0 | R66: 0 | S66: 0
F67: 0 | G67: =F67/F43 ->  | Q67: 0 | R67: 0 | S67: 0
F68: 0 | G68: =F68/F43 ->  | Q68: 0 | R68: 0 | S68: 0
F69: 0 | G69: =F69/F43 ->  | Q69: 0 | R69: 0 | S69: 0
F70: 0 | G70: =F70/F43 ->  | Q70: 0 | R70: 0 | S70: 0
F71: 0 | G71: =F71/F43 ->  | Q71: 0 | R71: 0 | S71: 0
F72: 0 | G72: =F72/F43 ->  | Q72: 0 | R72: 0 | S72: 0
F73: 0 | G73: =F73/F43 ->  | Q73: 0 | R73: 0 | S73: 0
F74: 0 | G74: =F74/F43 ->  | Q74: 0 | R74: 0 | S74: 0
F75: 0 | G75: =F75/F43 ->  | Q75: 0 | R75: 0 | S75: 0
F76: 0 | G76: =F76/F43 ->  | Q76: 0 | R76: 0 | S76: 0
F77: =E77*D77 -> 0 | G77: =F77/F43 ->  | Q77: =IF(SUMIF($I$11:$P$11,"*budget*",$I77:$P77)=F77,SUMIF($I$11:$P$11,"*budget*",$I77:$P77),"Error in Period Budget") -> 0 | R77: 0 | S77: =F77-R77 -> 0
F78: 0 | G78: =F78/F43 ->  | Q78: 0 | R78: 0 | S78: 0
B79: Total | F79: =SUM(F48:F78) -> 0 | G79: =SUM(G48:G78) ->  | I79: =SUM(I48:I78) -> 0 | J79: 0 | K79: 0 | L79: 0 | M79: 0 | N79: 0 | O79: 0 | P79: 0 | Q79: 0 | R79: 0 | S79: 0
B81: Project Management (e.g. Intenal managers, administrators) | C81: Units e.g. days | D81: Number | E81: Unit Cost £ | F81: Total (£) | G81: % of project costs | I81: Budget P1 (£) | J81: Actuals P1 (£) | K81: Budget P2 (£) | L81: Actuals P2 (£) | M81: Budget P3 (£) | N81: Actuals P3 (£) | O81: Budget P4 (£) | P81: Actuals P4 (£) | Q81: Total Budget | R81: Total Actual | S81: Variance (£) | T81: Reason for any difference +/- £1,000
F82: =E82*D82 -> 0 | G82: =IF($F$172=0,"",F82/$F$172) ->  | Q82: =IF(SUMIF($I$11:$P$11,"*budget*",$I82:$P82)=F82,SUMIF($I$11:$P$11,"*budget*",$I82:$P82),"Error in Period Budget") -> 0 | R82: =SUMIF($I$11:$P$11,"*actual*",$I82:$P82) -> 0 | S82: =F82-R82 -> 0
F83: 0 | Q83: 0 | R83: 0 | S83: 0
F84: 0 | Q84: 0 | R84: 0 | S84: 0
F85: 0 | Q85: 0 | R85: 0 | S85: 0
F86: 0 | Q86: 0 | R86: 0 | S86: 0
F87: 0 | Q87: 0 | R87: 0 | S87: 0
F88: 0 | Q88: 0 | R88: 0 | S88: 0
F89: 0 | Q89: 0 | R89: 0 | S89: 0
F90: 0 | Q90: 0 | R90: 0 | S90: 0
F91: 0 | Q91: 0 | R91: 0 | S91: 0
B92: Total | F92: =SUM(F82:F91) -> 0 | G92: 0 | I92: 0 | J92: 0 | K92: 0 | L92: 0 | M92: 0 | N92: 0 | O92: 0 | P92: 0 | Q92: =SUM(Q82:Q91) -> 0 | R92: 0 | S92: 0
B94: Overheads (rent, light, heating etc) | C94: Units e.g. days | D94: Number | E94: Unit Cost £ | F94: Total (£) | G94: % of project costs | I94: Budget P1 (£) | J94: Actuals P1 (£) | K94: Budget P2 (£) | L94: Actuals P2 (£) | M94: Budget P3 (£) | N94: Actuals P3 (£) | O94: Budget P4 (£) | P94: Actuals P4 (£) | Q94: Total Budget | R94: Total Actual | S94: Variance (£) | T94: Reason for any difference +/- £1,000
F95: =E95*D95 -> 0 | G95: =IF($F$172=0,"",F95/$F$172) ->  | Q95: =IF(SUMIF($I$11:$P$11,"*budget*",$I95:$P95)=F95,SUMIF($I$11:$P$11,"*budget*",$I95:$P95),"Error in Period Budget") -> 0 | R95: =SUMIF($I$11:$P$11,"*actual*",$I95:$P95) -> 0 | S95: =F95-R95 -> 0
F96: 0 | Q96: 0 | R96: 0 | S96: 0
F97: 0 | Q97: 0 | R97: 0 | S97: 0
F98: 0 | Q98: 0 | R98: 0 | S98: 0
F99: 0 | Q99: 0 | R99: 0 | S99: 0
F100: 0 | Q100: 0 | R100: 0 | S100: 0
F101: 0 | Q101: 0 | R101: 0 | S101: 0
F102: 0 | Q102: 0 | R102: 0 | S102: 0
F103: 0 | Q103: 0 | R103: 0 | S103: 0
F104: 0 | Q104: 0 | R104: 0 | S104: 0
B105: Total | F105: =SUM(F95:F104) -> 0 | G105: 0 | I105: 0 | J105: 0 | K105: 0 | L105: 0 | M105: 0 | N105: 0 | O105: 0 | P105: 0 | Q105: =SUM(Q95:Q104) -> 0 | R105: 0 | S105: 0
B107: Marketing/Recruitment | C107: Units e.g. days | D107: Number | E107: Unit Cost £ | F107: Total (£) | G107: % of project costs | I107: Budget P1 (£) | J107: Actuals P1 (£) | K107: Budget P2 (£) | L107: Actuals P2 (£) | M107: Budget P3 (£) | N107: Actuals P3 (£) | O107: Budget P4 (£) | P107: Actuals P4 (£) | Q107: Total Budget | R107: Total Actual | S107: Variance (£) | T107: Reason for any difference +/- £1,000
F108: =E108*D108 -> 0 | G108: =IF($F$172=0,"",F108/$F$172) ->  | Q108: =IF(SUMIF($I$11:$P$11,"*budget*",$I108:$P108)=F108,SUMIF($I$11:$P$11,"*budget*",$I108:$P108),"Error in Period Budget") -> 0 | R108: =SUMIF($I$11:$P$11,"*actual*",$I108:$P108) -> 0 | S108: =F108-R108 -> 0
F109: 0 | Q109: 0 | R109: 0 | S109: 0
F110: 0 | Q110: 0 | R110: 0 | S110: 0
F111: 0 | Q111: 0 | R111: 0 | S111: 0
F112: 0 | Q112: 0 | R112: 0 | S112: 0
F113: 0 | Q113: 0 | R113: 0 | S113: 0
F114: 0 | Q114: 0 | R114: 0 | S114: 0
F115: 0 | Q115: 0 | R115: 0 | S115: 0
F116: 0 | Q116: 0 | R116: 0 | S116: 0
F117: 0 | Q117: 0 | R117: 0 | S117: 0
B118: Total | F118: =SUM(F108:F117) -> 0 | G118: 0 | I118: 0 | J118: 0 | K118: 0 | L118: 0 | M118: 0 | N118: 0 | O118: 0 | P118: 0 | Q118: =SUM(Q108:Q117) -> 0 | R118: 0 | S118: 0
B120: Access Support (Childcare cost, Disability Support, Hardship) | C120: Units e.g. days | D120: Number | E120: Unit Cost £ | F120: Total (£) | G120: % of project costs | I120: Budget P1 (£) | J120: Actuals P1 (£) | K120: Budget P2 (£) | L120: Actuals P2 (£) | M120: Budget P3 (£) | N120: Actuals P3 (£) | O120: Budget P4 (£) | P120: Actuals P4 (£) | Q120: Total Budget | R120: Total Actual | S120: Variance (£) | T120: Reason for any difference +/- £1,000
F121: =E121*D121 -> 0 | G121: =IF($F$172=0,"",F121/$F$172) ->  | Q121: =IF(SUMIF($I$11:$P$11,"*budget*",$I121:$P121)=F121,SUMIF($I$11:$P$11,"*budget*",$I121:$P121),"Error in Period Budget") -> 0 | R121: =SUMIF($I$11:$P$11,"*actual*",$I121:$P121) -> 0 | S121: =F121-R121 -> 0
F122: 0 | Q122: 0 | R122: 0 | S122: 0
F123: 0 | Q123: 0 | R123: 0 | S123: 0
F124: 0 | Q124: 0 | R124: 0 | S124: 0
F125: 0 | Q125: 0 | R125: 0 | S125: 0
F126: 0 | Q126: 0 | R126: 0 | S126: 0
F127: 0 | Q127: 0 | R127: 0 | S127: 0
F128: 0 | Q128: 0 | R128: 0 | S128: 0
F129: 0 | Q129: 0 | R129: 0 | S129: 0
F130: 0 | Q130: 0 | R130: 0 | S130: 0
B131: Total | F131: =SUM(F121:F130) -> 0 | G131: 0 | I131: 0 | J131: 0 | K131: 0 | L131: 0 | M131: 0 | N131: 0 | O131: 0 | P131: 0 | Q131: =SUM(Q121:Q130) -> 0 | R131: 0 | S131: 0
B133: Equipment | C133: Units e.g. days | D133: Number | E133: Unit Cost £ | F133: Total (£) | G133: % of project costs | I133: Budget P1 (£) | J133: Actuals P1 (£) | K133: Budget P2 (£) | L133: Actuals P2 (£) | M133: Budget P3 (£) | N133: Actuals P3 (£) | O133: Budget P4 (£) | P133: Actuals P4 (£) | Q133: Total Budget | R133: Total Actual | S133: Variance (£) | T133: Reason for any difference +/- £1,000
F134: =E134*D134 -> 0 | G134: =IF($F$172=0,"",F134/$F$172) ->  | Q134: =IF(SUMIF($I$11:$P$11,"*budget*",$I134:$P134)=F134,SUMIF($I$11:$P$11,"*budget*",$I134:$P134),"Error in Period Budget") -> 0 | R134: =SUMIF($I$11:$P$11,"*actual*",$I134:$P134) -> 0 | S134: =F134-R134 -> 0
F135: 0 | Q135: 0 | R135: 0 | S135: 0
F136: 0 | Q136: 0 | R136: 0 | S136: 0
F137: 0 | Q137: 0 | R137: 0 | S137: 0
F138: 0 | Q138: 0 | R138: 0 | S138: 0
F139: 0 | Q139: 0 | R139: 0 | S139: 0
F140: 0 | Q140: 0 | R140: 0 | S140: 0
F141: 0 | Q141: 0 | R141: 0 | S141: 0
F142: 0 | Q142: 0 | R142: 0 | S142: 0
F143: 0 | Q143: 0 | R143: 0 | S143: 0
B144: Total | F144: =SUM(F134:F143) -> 0 | G144: 0 | I144: 0 | J144: 0 | K144: 0 | L144: 0 | M144: 0 | N144: 0 | O144: 0 | P144: 0 | Q144: =SUM(Q134:Q143) -> 0 | R144: 0 | S144: 0
B146: Other (please provide breakdown of any costs that do not fit into other areas of ths budget) | C146: Units e.g. days | D146: Number | E146: Unit Cost £ | F146: Total (£) | G146: % of project costs | I146: Budget P1 (£) | J146: Actuals P1 (£) | K146: Budget P2 (£) | L146: Actuals P2 (£) | M146: Budget P3 (£) | N146: Actuals P3 (£) | O146: Budget P4 (£) | P146: Actuals P4 (£) | Q146: Total Budget | R146: Total Actual | S146: Variance (£) | T146: Reason for any difference +/- £1,000
F147: =E147*D147 -> 0 | G147: =IF($F$172=0,"",F147/$F$172) ->  | Q147: =IF(SUMIF($I$11:$P$11,"*budget*",$I147:$P147)=F147,SUMIF($I$11:$P$11,"*budget*",$I147:$P147),"Error in Period Budget") -> 0 | R147: =SUMIF($I$11:$P$11,"*actual*",$I147:$P147) -> 0 | S147: =F147-R147 -> 0
F148: 0 | Q148: 0 | R148: 0 | S148: 0
F149: 0 | Q149: 0 | R149: 0 | S149: 0
F150: 0 | Q150: 0 | R150: 0 | S150: 0
F151: 0 | Q151: 0 | R151: 0 | S151: 0
F152: 0 | Q152: 0 | R152: 0 | S152: 0
F153: 0 | Q153: 0 | R153: 0 | S153: 0
F154: 0 | Q154: 0 | R154: 0 | S154: 0
F155: 0 | Q155: 0 | R155: 0 | S155: 0
F156: 0 | Q156: 0 | R156: 0 | S156: 0
B157: Total | F157: =SUM(F147:F156) -> 0 | G157: 0 | I157: 0 | J157: 0 | K157: 0 | L157: 0 | M157: 0 | N157: 0 | O157: 0 | P157: 0 | Q157: =SUM(Q147:Q156) -> 0 | R157: 0 | S157: 0
B159: Evaluation (for projects where ScreenSkills fuding amounts to £50,000 + only will require and independent audit. Remember to budget for this) | C159: Units e.g. days | D159: Number | E159: Unit Cost £ | F159: Total (£) | G159: % of project costs | I159: Budget P1 (£) | J159: Actuals P1 (£) | K159: Budget P2 (£) | L159: Actuals P2 (£) | M159: Budget P3 (£) | N159: Actuals P3 (£) | O159: Budget P4 (£) | P159: Actuals P4 (£) | Q159: Total Budget | R159: Total Actual | S159: Variance (£) | T159: Reason for any difference +/- £1,000
F160: =E160*D160 -> 0 | G160: =IF($F$172=0,"",F160/$F$172) ->  | Q160: =IF(SUMIF($I$11:$P$11,"*budget*",$I160:$P160)=F160,SUMIF($I$11:$P$11,"*budget*",$I160:$P160),"Error in Period Budget") -> 0 | R160: =SUMIF($I$11:$P$11,"*actual*",$I160:$P160) -> 0 | S160: =F160-R160 -> 0
F161: 0 | Q161: =IF(SUMIF($I$11:$P$11,"*budget*",$I161:$P161)=F161,SUMIF($I$11:$P$11,"*budget*",$I161:$P161),"Error in Period Budget") -> 0 | R161: 0 | S161: 0
F162: 0 | Q162: 0 | R162: 0 | S162: 0
F163: 0 | Q163: 0 | R163: 0 | S163: 0
F164: 0 | Q164: 0 | R164: 0 | S164: 0
F165: 0 | Q165: 0 | R165: 0 | S165: 0
F166: 0 | Q166: 0 | R166: 0 | S166: 0
F167: 0 | Q167: 0 | R167: 0 | S167: 0
F168: 0 | Q168: 0 | R168: 0 | S168: 0
F169: 0 | Q169: 0 | R169: 0 | S169: 0
B170: Total Expenditure ( E ) | F170: =SUM(F160:F169) -> 0 | G170: 0 | I170: 0 | J170: 0 | K170: 0 | L170: 0 | M170: 0 | N170: 0 | O170: 0 | P170: 0 | Q170: =SUM(Q160:Q169) -> 0 | R170: 0 | S170: 0
B172: TOTAL SPEND | F172: =F79 -> 0 | G172: =G79+G92+G105+G118+G131+G157+G144+G170 ->  | I172: =I170+I157+I144+I131+I118+I105+I79+I92 -> 0 | J172: 0 | K172: 0 | L172: 0 | M172: 0 | N172: 0 | O172: 0 | P172: 0 | Q172: =Q170+Q157+Q144+Q131+Q118+Q105+Q79+Q92 -> 0 | R172: 0 | S172: 0
C174: ScreenSkills USE ONLY | I174: ScreenSkills USE ONLY
C176: Project Summary | I176: =I159 -> Budget P1 (£) | J176: Actuals P1 (£) | K176: Budget P2 (£) | L176: Actuals P2 (£) | M176: Budget P3 (£) | N176: Actuals P3 (£) | O176: Budget P4 (£) | P176: Actuals P4 (£) | Q176: Total Budget | R176: Total Actual | S176: Variance
C177: Total Project Income | F177: =F43 -> 0 | I177: =I35 ->  | Q177: =SUMIF($I$11:$P$11,"*budget*",$I177:$P177) ->  | R177: =SUMIF($I$11:$P$11,"*actual*",$I177:$P177) ->  | S177: =F177-R177 -> 
C178: Total Project Expenditure | F178: =F172 -> 0 | I178: =I172 -> 0 | J178: 0 | K178: 0 | L178: 0 | M178: 0 | N178: 0 | O178: 0 | P178: 0 | Q178: =SUMIF($I$11:$P$11,"*budget*",$I178:$P178) -> 0 | R178: =SUMIF($I$11:$P$11,"*actual*",$I178:$P178) -> 0 | S178: =F178-R178 -> 0
C179: Total Project Cost (expenditure minus income) | F179: =F178-F177 -> 0 | I179: =I177-I178 ->  | Q179: =Q177-Q178 -> 
B181: Narrative on Overheads & Project Management Costs
B182: Please use this section to tell us how you have calculated your overheads and project management costs:
B197: Notes to the Budget

Sheet 2. Risk Analysis (hidden)
B2: Risk Analysis
B3: On this tab you should identify the risks, constraints and dependencies in delivering the project and outline how these will be managed. Please describe how these risks will be monitored and reported.
B4: This is an example please complete the table below this one
B5: Risk | C5: Description of Impact | D5: How to Mitigate risk | E5: Course of action if risk becomes reality (i.e. what is flexible, what are our limits) | F5: High/Medium/low
B6: Participants Ability to recruit the target number that have the required level of skills/experience. | C6: The course is aimed at tutoring 8 participants- with specific area of expertise in the camera department. With high-fee commitment's to industry expert tutors of £20K the right calibre of participants should be recruited. The number of participants, their availability, calibre of participants and applicants are relying on word of mouth and marketing to the industry. | D6: Assess the response from the high level talent. Lower the participant’s level- more intermediate than high level/ supervisor types. Targeted marketing Look at all key personnel involved availability in running at a later date. | E6: Reassess participant targets Could lower target to 6 participants or participant grade | F6: Medium.
B7: Course Content Is the course curriculum the right level for participants? | C7: The course is split in to 2 parts- first two weeks are craft and technical based; the second part is aimed at on-set working practices with seminars and masterclasses. | D7: Securing the key industry professionals to feed in to structure Attract the intermediate level talent Finding the right tutors to complement the overall aims of the project. | E7: Could make the first part of the course one week followed by one week of the masterclass Tutors to review curriculum once participants are recruited to ensure suitabiilty | F7: Medium.
B8: Training providers Do the tutors have the required skills/experience? | C8: Experienced training providers taking on and delivering the first course/pilot. | D8: Ensure recruitment process is robust Utilise network of contacts for suitable recommendations Use companies that have been used before | E8: Give as much support/ advice and help as possible and be more involved in having a presence during the course. | F8: Low. The company are experienced Training providers with a good track record of delivering training in this sector.
B9: Dates The chosen dates result in low applicant numbers | C9: Is August an appropriate time for key industry talent to take training? High level Participants availability Tutors availabilty | D9: Ensure detailed research is conducted and key industry figures are consulted. Ask key industry personnel about timings against the greenlight/ pre-production start dates Consider time of date and length of course | E9: Our limit is to run the course in current financial year Summer productions could have a knock on effect for both participants and tutors. Could lower the participant criteria to ensure numbers. | F9: Medium/High
B11: Risk | C11: Description of Impact | D11: How to Mitigate risk | E11: Course of action if risk becomes reality (i.e. what is flexible, what are our limits) | F11: High/Medium/low

Sheet 3. Project Report (hidden)
B2: Project Details
B4: The name of your organisation: | C4: ='1. Budget'!E2 -> Please add | F4: Colour code progress:
B5: Project title: | C5: ='1. Budget'!E3 -> Please add | F5: ON TARGET
B6: Project start date: | D6: Project end date: | F6: MINOR ISSUES
B7: Course start date: | D7: Course end date: | F7: SERIOUS ISSUES
B8: Closing date for applications: | F8: NO CHANGE
B10: Please report on your activity when submitting your claim for that period. Please use the colour coding shown above.
B11: PARTICIPANT NUMBERS
B12: Activity | C12: Expected Date for completion | D12: What will success look like? | E12: How will this be measured? | F12: Period 1 | G12: Period 2 | H12: Period 3 | I12: Period 4
F13: Progress, including any unexpected results or budget variance updated with each claim | G13: Progress, including any unexpected results or budget variance updated with each claim | H13: Progress, including any unexpected results or budget variance updated with each claim | I13: Progress, including any unexpected results or budget variance updated with each claim
B23: TRAINING
B24: Activity | C24: Course / Session Dates | D24: What will success look like? | E24: How will this be measured? | F24: Period 1 | G24: Period 2 | H24: Period 3 | I24: Period 4
F25: Progress, including any unexpected results or budget variance updated with each claim | G25: Progress, including any unexpected results or budget variance updated with each claim | H25: Progress, including any unexpected results or budget variance updated with each claim | I25: Progress, including any unexpected results or budget variance updated with each claim
B34: PROJECT MANAGEMENT
B35: Activity | C35: Expected Date for completion | D35: What will success look like? | E35: How will this be measured? | F35: Period 1 | G35: Period 2 | H35: Period 3 | I35: Period 4
F36: Progress, including any unexpected results or budget variance updated with each claim | G36: Progress, including any unexpected results or budget variance updated with each claim | H36: Progress, including any unexpected results or budget variance updated with each claim | I36: Progress, including any unexpected results or budget variance updated with each claim
B45: MARKETING / RECRUITMENT
B46: Activity | C46: Expected Date for completion | D46: What will success look like? | E46: How will this be measured? | F46: Period 1 | G46: Period 2 | H46: Period 3 | I46: Period 4
F47: Progress, including any unexpected results or budget variance updated with each claim | G47: Progress, including any unexpected results or budget variance updated with each claim | H47: Progress, including any unexpected results or budget variance updated with each claim | I47: Progress, including any unexpected results or budget variance updated with each claim
B48: Marketing
B54: Recruitment
B61: EVALUATION
B62: Learning Outcomes (Stated in your application) | C62: Expected Date for completion | D62: What will success look like? | E62: How will this be measured? | F62: Period 1 | G62: Period 2 | H62: Period 3 | I62: Period 4
F63: Progress, including any unexpected results or budget variance updated with each claim | G63: Progress, including any unexpected results or budget variance updated with each claim | H63: Progress, including any unexpected results or budget variance updated with each claim | I63: Progress, including any unexpected results or budget variance updated with each claim

Sheet 4. Claim Form (hidden)
B3: Claim Form
B5: Organisation Name: | C5: ='1. Budget'!E2 -> Please add
B6: Project Title: | C6: ='1. Budget'!E3 -> Please add
B7: Project Ref No: | C7: ='1. Budget'!E4 -> ScreenSkills generated
B9: Payments will be deposited in the following account:
B11: Bank Name: | C11: Please enter
B12: Account Name: | C12: Please enter
B13: Sort Code: | C13: Please enter
B14: Account Number: | C14: Please enter
B16: Period for which funds are requested:
B18: SUMMARY
B19: Budget
B20: Total Budget Income Partnership Funding cash | D20: ='1. Budget'!F13 -> 0
B21: Total Budget Income Partnership Funding in-kind support | D21: ='1. Budget'!F21 -> 0
B22: Total ScreenSkills Grant Funding | D22: ='1. Budget'!F42 -> 0
B23: Total Budget Project Spend | D23: ='1. Budget'!F172 -> 0
B25: ACTUALS | D25: £ | E25: %
B26: Total Actual Expenditure Partnership Funding CASH | D26: ='1. Budget'!R13 -> 0 | E26: =D26/#REF! -> 
B27: Total Actual Income Partnership Funding IN-KIND | D27: ='1. Budget'!R21 -> 0 | E27: =D27/#REF! -> 
B28: Total Actual Partnership Funding IN-KIND | D28: ='1. Budget'!#REF! ->  | E28: =D28/#REF! -> 
B29: ScreenSkills funds claimed to date | E29: =D30/#REF! -> 
B30: Total Actual Spend To Date | D30: ='1. Budget'!#REF! ->  | E30: =D31/#REF! -> 
B32: (Surplus)/Deficit At End Of Previous Period | D32: =#REF!-D26-D27-D30 ->  | E32: =D32/#REF! -> 
B34: Final 10% Retention | D34: =#REF!*0.1 ->  | E34: =IF(D34=0,"",D34/#REF!) -> 
B35: Remaining Grant to Claim during project less 10% retention | D35: =#REF!-D30-D34 ->  | E35: =IF(D35=0,"",D35/#REF!) -> 
B38: Total Amount Due: | D38: =D32 -> 
B42: Signed by Grantee: | D42: Date:
B43: Position:
B44: ScreenSkills Internal Authorisation: | D44: Date:
B73: For ScreenSkills use only
B75: Payment will be made according to the Contract Payment Schedule.
B77: Claim examined. I certify there is proper authority for the activity funded and no item in this claim has previously been passed for payment:
B78: I certify that the activity has been carried out satisfactorily, the outcomes have been achieved and are satisfactory, the amounts claimed have been
B79: checked and are correct and the terms and conditions of the Agreement expressed or implied have been met:
B81: Position:
B84: Signature:
B87: To be paid from:
B88: Lottery | C88: R2100
B89: SIF | C89: R2000

Sheet Sheet1 (hidden)
A3: TM workings
A5: Total expenditure | B5: 43636.65
A7: SSkills paid to date | B7: 28227.05
A8: Cash | B8: 0
A9: Kind | B9: 1850
A10: Difference | B10: 13559.6
A12: Agreed award | B12: 64425
A13: max based on % | B13: 42259.16838
A15: balance based on grant | B15: 36197.95
A16: balance based on % | B16: 14032.11838
A18: FINAL PAYMENT | B18: 13559.6
